[Event "Early-Titled-Tuesday-Blitz-May-07-2024"]
[Site "Chess.com"]
[Date "2024.05.07"]
[Round "7"]
[White "Alphafischer2019"]
[Black "mortngabriel"]
[Result "1-0"]
[WhiteElo "2654"]
[BlackElo "2500"]
[TimeControl "180+1"]
[EndTime "9:21:07 PDT"]
[Termination "Alphafischer2019 won by checkmate"]

1. Nf3 {[%clk 0:03:00.9]} 1... c5 {[%clk 0:02:59]} 2. g3 {[%clk 0:02:57]} 2...
Nc6 {[%clk 0:02:57.5]} 3. Bg2 {[%clk 0:02:50.3]} 3... g6 {[%clk 0:02:55.4]} 4.
d3 {[%clk 0:02:50.9]} 4... Bg7 {[%clk 0:02:52.8]} 5. e4 {[%clk 0:02:50.7]} 5...
d6 {[%clk 0:02:41.7]} 6. O-O {[%clk 0:02:49.8]} 6... Nf6 {[%clk 0:02:41.9]} 7.
c3 {[%clk 0:02:46]} 7... O-O {[%clk 0:02:40.8]} 8. a4 {[%clk 0:02:46.6]} 8...
Rb8 {[%clk 0:02:32.7]} 9. Na3 {[%clk 0:02:47]} 9... a6 {[%clk 0:02:28.6]} 10.
Re1 {[%clk 0:02:44]} 10... b5 {[%clk 0:02:16.8]} 11. axb5 {[%clk 0:02:41.2]}
11... axb5 {[%clk 0:02:17.7]} 12. d4 {[%clk 0:02:41.3]} 12... cxd4 {[%clk
0:02:05.6]} 13. cxd4 {[%clk 0:02:40.4]} 13... d5 {[%clk 0:02:05.5]} 14. e5
{[%clk 0:02:37.5]} 14... Ne4 {[%clk 0:02:04.5]} 15. Nc2 {[%clk 0:02:33.6]} 15...
Bg4 {[%clk 0:01:23.9]} 16. h3 {[%clk 0:02:29.7]} 16... Be6 {[%clk 0:01:14.8]}
17. Ng5 {[%clk 0:02:28.1]} 17... Nxg5 {[%clk 0:01:13.4]} 18. Bxg5 {[%clk
0:02:29]} 18... Qd7 {[%clk 0:01:05]} 19. Kh2 {[%clk 0:02:26.7]} 19... f6 {[%clk
0:01:01.6]} 20. exf6 {[%clk 0:02:25.5]} 20... exf6 {[%clk 0:01:02.5]} 21. Bf4
{[%clk 0:02:25.6]} 21... Ra8 {[%clk 0:00:59.3]} 22. Rxa8 {[%clk 0:02:22]} 22...
Rxa8 {[%clk 0:01:00.2]} 23. Qe2 {[%clk 0:02:22.2]} 23... Nd8 {[%clk 0:00:46.5]}
24. Nb4 {[%clk 0:02:20.7]} 24... Bf7 {[%clk 0:00:21.3]} 25. Nxd5 {[%clk
0:02:19.1]} 25... Bxd5 {[%clk 0:00:12.6]} 26. Qe8+ {[%clk 0:02:19.4]} 26... Qxe8
{[%clk 0:00:11.4]} 27. Rxe8+ {[%clk 0:02:18.8]} 27... Kf7 {[%clk 0:00:11.6]} 28.
Bxd5+ {[%clk 0:02:18.5]} 28... Kxe8 {[%clk 0:00:11.6]} 29. Bxa8 {[%clk
0:02:19.1]} 29... Kd7 {[%clk 0:00:07.7]} 30. d5 {[%clk 0:02:18.4]} 30... f5
{[%clk 0:00:07.3]} 31. b3 {[%clk 0:02:18.8]} 31... Nf7 {[%clk 0:00:06.2]} 32.
Bc6+ {[%clk 0:02:18.1]} 32... Kd8 {[%clk 0:00:05.2]} 33. Bxb5 {[%clk 0:02:19]}
33... Be5 {[%clk 0:00:04.4]} 34. Be3 {[%clk 0:02:18]} 34... Nd6 {[%clk
0:00:02.3]} 35. Bb6+ {[%clk 0:02:17.7]} 35... Kc8 {[%clk 0:00:01.8]} 36. Bc6
{[%clk 0:02:18.3]} 36... Ne4 {[%clk 0:00:01.4]} 37. f4 {[%clk 0:02:17.9]} 37...
Bc7 {[%clk 0:00:01.4]} 38. Bd4 {[%clk 0:02:17.4]} 38... Bd6 {[%clk 0:00:01.4]}
39. g4 {[%clk 0:02:16.7]} 39... Kc7 {[%clk 0:00:01.7]} 40. gxf5 {[%clk
0:02:16.5]} 40... gxf5 {[%clk 0:00:02.6]} 41. Be3 {[%clk 0:02:13.3]} 41... Nc3
{[%clk 0:00:01.9]} 42. Kg2 {[%clk 0:02:12.4]} 42... Ne4 {[%clk 0:00:02.4]} 43.
Kf3 {[%clk 0:02:08.9]} 43... Nf6 {[%clk 0:00:03.3]} 44. b4 {[%clk 0:02:08.4]}
44... Ng8 {[%clk 0:00:03.1]} 45. b5 {[%clk 0:02:09.3]} 45... Ne7 {[%clk
0:00:03.7]} 46. b6+ {[%clk 0:02:09.9]} 46... Kc8 {[%clk 0:00:04.2]} 47. b7+
{[%clk 0:02:10.5]} 47... Kc7 {[%clk 0:00:04.7]} 48. Ba7 {[%clk 0:02:10.3]} 48...
Nxc6 {[%clk 0:00:05.2]} 49. dxc6 {[%clk 0:02:09.7]} 49... Kxc6 {[%clk
0:00:05.9]} 50. b8=Q {[%clk 0:02:10.4]} 50... Bxb8 {[%clk 0:00:06.6]} 51. Bxb8
{[%clk 0:02:11.3]} 51... Kd7 {[%clk 0:00:07.3]} 52. Be5 {[%clk 0:02:12.2]} 52...
Ke6 {[%clk 0:00:08.2]} 53. Kg3 {[%clk 0:02:12.5]} 53... Kf7 {[%clk 0:00:09.1]}
54. Kh4 {[%clk 0:02:12.2]} 54... Kg6 {[%clk 0:00:10]} 55. Bc3 {[%clk 0:02:12.9]}
55... Kh6 {[%clk 0:00:10]} 56. Bd4 {[%clk 0:02:13.8]} 56... Kg6 {[%clk
0:00:10.9]} 57. Bc5 {[%clk 0:02:13.6]} 57... Kh6 {[%clk 0:00:11.8]} 58. Bf8+
{[%clk 0:02:14.1]} 58... Kg6 {[%clk 0:00:12.7]} 59. Kg3 {[%clk 0:02:13.2]} 59...
Kf7 {[%clk 0:00:13.3]} 60. Bc5 {[%clk 0:02:13.3]} 60... Kg6 {[%clk 0:00:14.2]}
61. Kf3 {[%clk 0:02:13.7]} 61... Kh5 {[%clk 0:00:14.6]} 62. Be7 {[%clk
0:02:13.9]} 62... Kg6 {[%clk 0:00:14.6]} 63. Ke3 {[%clk 0:02:14.8]} 63... Kf7
{[%clk 0:00:15.5]} 64. Bd8 {[%clk 0:02:15.4]} 64... Ke8 {[%clk 0:00:15.4]} 65.
Bh4 {[%clk 0:02:16]} 65... Kf7 {[%clk 0:00:16.3]} 66. Kd4 {[%clk 0:02:16.4]}
66... Kg6 {[%clk 0:00:17.2]} 67. Kd5 {[%clk 0:02:16.9]} 67... Kh5 {[%clk
0:00:17.6]} 68. Bd8 {[%clk 0:02:17]} 68... Kg6 {[%clk 0:00:18.4]} 69. Ke6 {[%clk
0:02:17.6]} 69... h5 {[%clk 0:00:17.2]} 70. Bh4 {[%clk 0:02:18.1]} 70... Kh6
{[%clk 0:00:17]} 71. Kf6 {[%clk 0:02:17.5]} 71... Kh7 {[%clk 0:00:17.3]} 72.
Kxf5 {[%clk 0:02:18.4]} 72... Kh6 {[%clk 0:00:18.2]} 73. Kf6 {[%clk 0:02:18.4]}
73... Kh7 {[%clk 0:00:18.4]} 74. Kg5 {[%clk 0:02:19.3]} 74... Kg7 {[%clk
0:00:18.7]} 75. f5 {[%clk 0:02:20.2]} 75... Kg8 {[%clk 0:00:19.6]} 76. f6 {[%clk
0:02:21.1]} 76... Kh8 {[%clk 0:00:20.5]} 77. Kg6 {[%clk 0:02:21.1]} 77... Kg8
{[%clk 0:00:21.4]} 78. f7+ {[%clk 0:02:21.1]} 78... Kf8 {[%clk 0:00:22.3]} 79.
Be1 {[%clk 0:02:18.4]} 79... h4 {[%clk 0:00:22.9]} 80. Bb4# {[%clk 0:02:16.5]}
1-0

[Event "Early-Titled-Tuesday-Blitz-May-07-2024"]
[Site "Chess.com"]
[Date "2024.05.07"]
[Round "7"]
[White "Ural_bogatyr"]
[Black "MarkusRagger"]
[Result "1/2-1/2"]
[WhiteElo "2578"]
[BlackElo "2804"]
[TimeControl "180+1"]
[EndTime "9:21:18 PDT"]
[Termination "Game drawn by repetition"]

1. d4 {[%clk 0:03:00.9]} 1... Nf6 {[%clk 0:02:59.8]} 2. Nc3 {[%clk 0:03:00.4]}
2... d5 {[%clk 0:02:58.7]} 3. Bf4 {[%clk 0:03:00.6]} 3... g6 {[%clk 0:02:58.6]}
4. e3 {[%clk 0:02:59.4]} 4... Bg7 {[%clk 0:02:57.5]} 5. Nb5 {[%clk 0:02:59.9]}
5... Na6 {[%clk 0:02:57.5]} 6. Nc3 {[%clk 0:03:00.2]} 6... Nb8 {[%clk 0:02:57]}
7. Nb5 {[%clk 0:03:00.3]} 7... Na6 {[%clk 0:02:56.1]} 8. Nc3 {[%clk 0:03:00.8]}
8... O-O {[%clk 0:02:51.9]} 9. Bxa6 {[%clk 0:03:00.4]} 9... bxa6 {[%clk
0:02:52.1]} 10. Be5 {[%clk 0:03:01.3]} 10... c6 {[%clk 0:02:37.2]} 11. Nge2
{[%clk 0:02:54]} 11... a5 {[%clk 0:02:18.4]} 12. O-O {[%clk 0:02:49.6]} 12...
Ba6 {[%clk 0:02:17.8]} 13. Re1 {[%clk 0:02:49]} 13... Nd7 {[%clk 0:02:16.7]} 14.
Bxg7 {[%clk 0:02:47.9]} 14... Kxg7 {[%clk 0:02:16.5]} 15. Nf4 {[%clk 0:02:27.9]}
15... Rb8 {[%clk 0:02:14.7]} 16. b3 {[%clk 0:02:26.7]} 16... e6 {[%clk
0:02:14.8]} 17. Nd3 {[%clk 0:02:25.2]} 17... Qe7 {[%clk 0:02:04.9]} 18. Na4
{[%clk 0:02:24.4]} 18... Bxd3 {[%clk 0:02:04.4]} 19. Qxd3 {[%clk 0:02:18.2]}
19... Nb6 {[%clk 0:02:02.5]} 20. Nc5 {[%clk 0:02:14.5]} 20... Nd7 {[%clk
0:02:03]} 21. Nxd7 {[%clk 0:02:06.3]} 21... Qxd7 {[%clk 0:02:02.8]} 22. c4
{[%clk 0:02:06.3]} 22... a4 {[%clk 0:01:59.8]} 23. Rec1 {[%clk 0:02:01.8]} 23...
axb3 {[%clk 0:01:57]} 24. axb3 {[%clk 0:02:01.2]} 24... Rb4 {[%clk 0:01:55]} 25.
cxd5 {[%clk 0:01:56.6]} 25... cxd5 {[%clk 0:01:54.3]} 26. h4 {[%clk 0:01:49.1]}
26... Rfb8 {[%clk 0:01:48.8]} 27. Ra3 {[%clk 0:01:48.7]} 27... R8b7 {[%clk
0:01:17.4]} 28. Qc3 {[%clk 0:01:43]} 28... R4b6 {[%clk 0:01:12]} 29. g3 {[%clk
0:01:38.2]} 29... h5 {[%clk 0:01:10.3]} 30. Kg2 {[%clk 0:01:36.9]} 30... Qe7
{[%clk 0:01:09.3]} 31. Qa1 {[%clk 0:01:32.7]} 31... g5 {[%clk 0:01:02.5]} 32.
hxg5 {[%clk 0:01:30.8]} 32... Qxg5 {[%clk 0:01:03]} 33. Rxa7 {[%clk 0:01:26]}
33... Rxb3 {[%clk 0:01:01.5]} 34. Rxb7 {[%clk 0:01:22.8]} 34... Rxb7 {[%clk
0:01:02.4]} 35. Rh1 {[%clk 0:01:22.2]} 35... Qf5 {[%clk 0:01:01.7]} 36. Qd1
{[%clk 0:01:17.8]} 36... Rb2 {[%clk 0:00:58.6]} 37. Qf3 {[%clk 0:01:13.6]} 37...
Qxf3+ {[%clk 0:00:57.3]} 38. Kxf3 {[%clk 0:01:14.5]} 38... Kg6 {[%clk
0:00:57.6]} 39. Rc1 {[%clk 0:01:12.2]} 39... Ra2 {[%clk 0:00:53.6]} 40. Rc8
{[%clk 0:01:11.4]} 40... Ra1 {[%clk 0:00:53.3]} 41. Rg8+ {[%clk 0:01:10.4]}
41... Kf6 {[%clk 0:00:53.1]} 42. Rh8 {[%clk 0:01:10.5]} 42... Kg6 {[%clk
0:00:53]} 43. Rg8+ {[%clk 0:01:10.6]} 43... Kh7 {[%clk 0:00:49.8]} 44. Rg5
{[%clk 0:01:05.4]} 44... Kh6 {[%clk 0:00:49.4]} 45. Rg8 {[%clk 0:01:05.3]} 45...
Ra2 {[%clk 0:00:38.5]} 46. Rh8+ {[%clk 0:01:03.5]} 46... Kg6 {[%clk 0:00:38.4]}
47. Rg8+ {[%clk 0:01:03.3]} 47... Kh7 {[%clk 0:00:37]} 48. Rg5 {[%clk
0:01:02.4]} 48... Kh6 {[%clk 0:00:36.2]} 49. Rg8 {[%clk 0:01:02.4]} 49... Kh7
{[%clk 0:00:26]} 50. Rg5 {[%clk 0:01:02.1]} 50... Kh6 {[%clk 0:00:26.4]} 51. Rg8
{[%clk 0:01:02]} 51... Kh7 {[%clk 0:00:27]} 1/2-1/2

[Event "Early-Titled-Tuesday-Blitz-May-07-2024"]
[Site "Chess.com"]
[Date "2024.05.07"]
[Round "7"]
[White "remyrushbrooke"]
[Black "LLariMarc"]
[Result "0-1"]
[WhiteElo "2286"]
[BlackElo "2514"]
[TimeControl "180+1"]
[EndTime "9:21:19 PDT"]
[Termination "LLariMarc won on time"]

1. Nf3 {[%clk 0:03:00.9]} 1... d5 {[%clk 0:02:58.1]} 2. g3 {[%clk 0:03:01]} 2...
g6 {[%clk 0:02:58.5]} 3. Bg2 {[%clk 0:03:00.8]} 3... Bg7 {[%clk 0:02:59.2]} 4.
O-O {[%clk 0:02:59.6]} 4... e5 {[%clk 0:02:59.5]} 5. d3 {[%clk 0:02:59.5]} 5...
Nc6 {[%clk 0:02:59.7]} 6. Nbd2 {[%clk 0:02:48.8]} 6... Nge7 {[%clk 0:02:59.2]}
7. c4 {[%clk 0:02:48.2]} 7... O-O {[%clk 0:02:59.4]} 8. a3 {[%clk 0:02:44.1]}
8... a5 {[%clk 0:02:58.1]} 9. Rb1 {[%clk 0:02:35.8]} 9... a4 {[%clk 0:02:43.1]}
10. b3 {[%clk 0:02:00.8]} 10... axb3 {[%clk 0:02:41.3]} 11. Qxb3 {[%clk
0:02:01.7]} 11... d4 {[%clk 0:02:28.6]} 12. a4 {[%clk 0:01:41.5]} 12... h6
{[%clk 0:02:27.8]} 13. Ba3 {[%clk 0:01:40.6]} 13... Kh7 {[%clk 0:02:24.5]} 14.
e3 {[%clk 0:01:38.3]} 14... Re8 {[%clk 0:02:20.6]} 15. exd4 {[%clk 0:01:37.6]}
15... Nxd4 {[%clk 0:02:18.7]} 16. Nxd4 {[%clk 0:01:38]} 16... Qxd4 {[%clk
0:02:15.8]} 17. Rfe1 {[%clk 0:01:26.8]} 17... Nc6 {[%clk 0:02:10]} 18. Bb2
{[%clk 0:01:18.1]} 18... Qa7 {[%clk 0:02:08.9]} 19. Bxc6 {[%clk 0:01:11.7]}
19... bxc6 {[%clk 0:02:08.6]} 20. Ra1 {[%clk 0:01:10.9]} 20... Rb8 {[%clk
0:02:04.6]} 21. Qc3 {[%clk 0:01:09.9]} 21... Bh3 {[%clk 0:01:56.9]} 22. Nf3
{[%clk 0:01:01.1]} 22... Qb7 {[%clk 0:01:51.9]} 23. Rab1 {[%clk 0:00:54.1]}
23... c5 {[%clk 0:01:51]} 24. Re3 {[%clk 0:00:53.6]} 24... Bh8 {[%clk
0:01:36.7]} 25. Qe1 {[%clk 0:00:08.5]} 25... e4 {[%clk 0:01:23.2]} 26. Nd2
{[%clk 0:00:03.1]} 26... Bxb2 {[%clk 0:01:19.9]} 27. Rxe4 {[%clk 0:00:02.6]}
27... Rxe4 {[%clk 0:01:19]} 28. Nxe4 {[%clk 0:00:03.5]} 28... Qb4 {[%clk
0:01:13.1]} 29. Qe2 {[%clk 0:00:02.6]} 29... Qa3 {[%clk 0:00:57]} 30. g4 {[%clk
0:00:02.2]} 30... Qa2 {[%clk 0:00:57]} 31. Rd1 {[%clk 0:00:01.6]} 31... Bxg4
{[%clk 0:00:42.1]} 32. Qxg4 {[%clk 0:00:00.3]} 32... f5 {[%clk 0:00:42.6]} 0-1

[Event "Early-Titled-Tuesday-Blitz-May-07-2024"]
[Site "Chess.com"]
[Date "2024.05.07"]
[Round "7"]
[White "GMSrinath"]
[Black "Mikhail_Golubev"]
[Result "1-0"]
[WhiteElo "2835"]
[BlackElo "2625"]
[TimeControl "180+1"]
[EndTime "9:21:21 PDT"]
[Termination "GMSrinath won on time"]

1. Nf3 {[%clk 0:03:00.9]} 1... d6 {[%clk 0:02:59.4]} 2. c4 {[%clk 0:02:59.4]}
2... g6 {[%clk 0:02:57.3]} 3. d4 {[%clk 0:02:57.7]} 3... Bg7 {[%clk 0:02:57.6]}
4. Nc3 {[%clk 0:02:58.1]} 4... Nf6 {[%clk 0:02:57.9]} 5. g3 {[%clk 0:02:58.8]}
5... O-O {[%clk 0:02:57.9]} 6. Bg2 {[%clk 0:02:59.6]} 6... c6 {[%clk 0:02:56.8]}
7. e4 {[%clk 0:02:59.4]} 7... e5 {[%clk 0:02:45.8]} 8. O-O {[%clk 0:02:58]} 8...
Nbd7 {[%clk 0:02:45.9]} 9. h3 {[%clk 0:02:58]} 9... exd4 {[%clk 0:02:42.8]} 10.
Nxd4 {[%clk 0:02:57.9]} 10... Re8 {[%clk 0:02:43.1]} 11. Re1 {[%clk 0:02:57.9]}
11... Qb6 {[%clk 0:02:42.5]} 12. Nb3 {[%clk 0:02:46.2]} 12... Ne5 {[%clk
0:02:39.1]} 13. Bf1 {[%clk 0:02:14.6]} 13... Be6 {[%clk 0:02:22.3]} 14. Be3
{[%clk 0:02:14.3]} 14... c5 {[%clk 0:02:20.9]} 15. Nd5 {[%clk 0:02:04]} 15...
Bxd5 {[%clk 0:02:19.5]} 16. exd5 {[%clk 0:02:04.3]} 16... a5 {[%clk 0:02:06.8]}
17. Rb1 {[%clk 0:01:57.7]} 17... a4 {[%clk 0:02:04]} 18. Nd2 {[%clk 0:01:57.7]}
18... Qa5 {[%clk 0:01:52.2]} 19. Qc2 {[%clk 0:01:54.3]} 19... Re7 {[%clk
0:01:28.1]} 20. Bf4 {[%clk 0:01:29.3]} 20... Rae8 {[%clk 0:01:21]} 21. Re2
{[%clk 0:01:29.9]} 21... Nh5 {[%clk 0:00:57.2]} 22. Bg5 {[%clk 0:01:28.9]} 22...
f6 {[%clk 0:00:56.9]} 23. Be3 {[%clk 0:01:27.9]} 23... f5 {[%clk 0:00:55.2]} 24.
Rbe1 {[%clk 0:01:19.8]} 24... Nf7 {[%clk 0:00:42.2]} 25. Nf3 {[%clk 0:01:06.2]}
25... f4 {[%clk 0:00:31.4]} 26. gxf4 {[%clk 0:01:03.7]} 26... Re4 {[%clk
0:00:03.1]} 27. Bd2 {[%clk 0:00:41.5]} 27... Rxe2 {[%clk 0:00:01.7]} 28. Rxe2
{[%clk 0:00:31.9]} 28... Rxe2 {[%clk 0:00:00.8]} 29. Bxe2 {[%clk 0:00:32.8]} 1-0

[Event "Early-Titled-Tuesday-Blitz-May-07-2024"]
[Site "Chess.com"]
[Date "2024.05.07"]
[Round "7"]
[White "FuenfgegenWilly"]
[Black "tandaleo"]
[Result "0-1"]
[WhiteElo "2459"]
[BlackElo "2596"]
[TimeControl "180+1"]
[EndTime "9:21:22 PDT"]
[Termination "tandaleo won by resignation"]

1. e4 {[%clk 0:03:00.9]} 1... e5 {[%clk 0:02:57.5]} 2. Nc3 {[%clk 0:03:00.5]}
2... Nf6 {[%clk 0:02:57.6]} 3. f4 {[%clk 0:03:00.2]} 3... d5 {[%clk 0:02:58.2]}
4. fxe5 {[%clk 0:03:00.5]} 4... Nxe4 {[%clk 0:02:58.8]} 5. Nf3 {[%clk
0:03:01.4]} 5... c5 {[%clk 0:02:52]} 6. d3 {[%clk 0:02:59.2]} 6... Nxc3 {[%clk
0:02:52]} 7. bxc3 {[%clk 0:03:00.1]} 7... Nc6 {[%clk 0:02:52.6]} 8. d4 {[%clk
0:03:00.6]} 8... cxd4 {[%clk 0:02:44.6]} 9. cxd4 {[%clk 0:03:00.6]} 9... Bb4+
{[%clk 0:02:42.7]} 10. Bd2 {[%clk 0:03:00.4]} 10... Bxd2+ {[%clk 0:02:42.9]} 11.
Qxd2 {[%clk 0:03:00.7]} 11... O-O {[%clk 0:02:43.6]} 12. Bd3 {[%clk 0:02:59.8]}
12... f6 {[%clk 0:02:42.8]} 13. O-O {[%clk 0:02:56.6]} 13... fxe5 {[%clk
0:02:43.2]} 14. Nxe5 {[%clk 0:02:52.2]} 14... Nxe5 {[%clk 0:02:39.3]} 15. dxe5
{[%clk 0:02:52.2]} 15... Be6 {[%clk 0:02:39.6]} 16. Qb4 {[%clk 0:02:36.2]} 16...
Rxf1+ {[%clk 0:01:42.5]} 17. Rxf1 {[%clk 0:02:34.1]} 17... Qc7 {[%clk
0:01:42.9]} 18. Qd4 {[%clk 0:02:28.7]} 18... b6 {[%clk 0:01:36.2]} 19. Bf5
{[%clk 0:02:20.5]} 19... Re8 {[%clk 0:01:16.9]} 20. Bxe6+ {[%clk 0:02:12.5]}
20... Rxe6 {[%clk 0:01:17.2]} 21. Qxd5 {[%clk 0:02:12]} 21... Qxe5 {[%clk
0:01:17.8]} 22. Qa8+ {[%clk 0:02:02.8]} 22... Re8 {[%clk 0:01:17.9]} 23. Qxa7
{[%clk 0:02:02.8]} 23... Qc5+ {[%clk 0:01:13.7]} 24. Kh1 {[%clk 0:02:01.7]}
24... Qf2 {[%clk 0:01:14]} 25. Qa6 {[%clk 0:01:30.6]} 25... Re1 {[%clk
0:00:18.9]} 26. Qc8+ {[%clk 0:01:30.1]} 26... Kf7 {[%clk 0:00:19]} 27. Qd7+
{[%clk 0:01:29.6]} 27... Kg6 {[%clk 0:00:18.9]} 28. Qd6+ {[%clk 0:01:29.9]}
28... Kh5 {[%clk 0:00:16.9]} 29. Qd5+ {[%clk 0:01:25.4]} 29... Kh6 {[%clk
0:00:09.9]} 30. Qd6+ {[%clk 0:00:36.4]} 30... g6 {[%clk 0:00:10.3]} 31. Qf8+
{[%clk 0:00:35.9]} 31... Qxf8 {[%clk 0:00:10.9]} 32. Rxe1 {[%clk 0:00:36.7]}
32... Qf2 {[%clk 0:00:10.5]} 33. Rg1 {[%clk 0:00:31.5]} 33... Qxc2 {[%clk
0:00:10.6]} 34. a4 {[%clk 0:00:31.6]} 34... Qxa4 {[%clk 0:00:10.8]} 35. h3
{[%clk 0:00:31.9]} 35... Qc2 {[%clk 0:00:11]} 0-1

[Event "Early-Titled-Tuesday-Blitz-May-07-2024"]
[Site "Chess.com"]
[Date "2024.05.07"]
[Round "7"]
[White "Groetzi"]
[Black "JiiHart"]
[Result "0-1"]
[WhiteElo "2400"]
[BlackElo "2184"]
[TimeControl "180+1"]
[EndTime "9:21:24 PDT"]
[Termination "JiiHart won by resignation"]

1. e4 {[%clk 0:03:00.9]} 1... c5 {[%clk 0:02:59.6]} 2. Nf3 {[%clk 0:02:59]} 2...
Nc6 {[%clk 0:02:58.6]} 3. Nc3 {[%clk 0:02:55.5]} 3... Nf6 {[%clk 0:02:57.9]} 4.
Bb5 {[%clk 0:02:54.3]} 4... e6 {[%clk 0:02:55.6]} 5. Bxc6 {[%clk 0:02:53.1]}
5... bxc6 {[%clk 0:02:54.2]} 6. d3 {[%clk 0:02:53.4]} 6... d5 {[%clk 0:02:46.4]}
7. e5 {[%clk 0:02:48.1]} 7... Nd7 {[%clk 0:02:45.6]} 8. O-O {[%clk 0:02:48.4]}
8... Be7 {[%clk 0:02:44.5]} 9. Bf4 {[%clk 0:02:37.8]} 9... O-O {[%clk
0:02:43.6]} 10. Ne2 {[%clk 0:02:37.9]} 10... f5 {[%clk 0:02:32.9]} 11. exf6
{[%clk 0:02:30.3]} 11... Bxf6 {[%clk 0:02:29.5]} 12. Rb1 {[%clk 0:02:16.5]}
12... e5 {[%clk 0:02:28.7]} 13. Bg3 {[%clk 0:02:13.9]} 13... Qe7 {[%clk
0:02:16.1]} 14. Nc3 {[%clk 0:02:13.6]} 14... Re8 {[%clk 0:01:57.3]} 15. Re1
{[%clk 0:02:13]} 15... a5 {[%clk 0:01:44.4]} 16. Qd2 {[%clk 0:01:38.2]} 16... a4
{[%clk 0:01:39]} 17. a3 {[%clk 0:01:35.5]} 17... Ba6 {[%clk 0:01:12.1]} 18. Re2
{[%clk 0:01:35.5]} 18... h6 {[%clk 0:00:48.7]} 19. Rbe1 {[%clk 0:01:31.5]} 19...
e4 {[%clk 0:00:46.1]} 20. Re3 {[%clk 0:01:06.7]} 20... d4 {[%clk 0:00:39.4]} 21.
Rxe4 {[%clk 0:01:06.5]} 21... dxc3 {[%clk 0:00:36.7]} 22. Rxe7 {[%clk
0:01:03.6]} 22... cxd2 {[%clk 0:00:36.7]} 23. Rxe8+ {[%clk 0:01:03.9]} 23...
Rxe8 {[%clk 0:00:36.7]} 24. Rxe8+ {[%clk 0:01:04.2]} 24... Kf7 {[%clk
0:00:37.2]} 25. Nxd2 {[%clk 0:00:47.8]} 25... Kxe8 {[%clk 0:00:37.5]} 26. Ne4
{[%clk 0:00:47.1]} 26... Bxb2 {[%clk 0:00:36.5]} 27. Nd6+ {[%clk 0:00:43.8]}
27... Ke7 {[%clk 0:00:36.5]} 28. Nf5+ {[%clk 0:00:43.8]} 28... Kf6 {[%clk
0:00:35.6]} 29. Nd6 {[%clk 0:00:43.1]} 29... Bxa3 {[%clk 0:00:35]} 30. Ne4+
{[%clk 0:00:38.5]} 30... Kg6 {[%clk 0:00:35.1]} 31. Nc3 {[%clk 0:00:39.4]} 31...
Bb5 {[%clk 0:00:34.1]} 32. f4 {[%clk 0:00:36.8]} 32... Bb2 {[%clk 0:00:34.3]}
33. Na2 {[%clk 0:00:36.1]} 33... c4 {[%clk 0:00:33.3]} 34. Kf2 {[%clk
0:00:31.4]} 34... cxd3 {[%clk 0:00:33.3]} 35. cxd3 {[%clk 0:00:32.3]} 35... Bxd3
{[%clk 0:00:33.6]} 36. Ke3 {[%clk 0:00:33.2]} 36... Bc4 {[%clk 0:00:33.7]} 37.
Nb4 {[%clk 0:00:34.1]} 37... a3 {[%clk 0:00:32.9]} 38. Be1 {[%clk 0:00:32.7]}
38... a2 {[%clk 0:00:32.3]} 39. Nxa2 {[%clk 0:00:33.4]} 39... Bxa2 {[%clk
0:00:32.6]} 40. g4 {[%clk 0:00:34.3]} 40... Bc1+ {[%clk 0:00:32.4]} 41. Ke4
{[%clk 0:00:34.3]} 41... Bd5+ {[%clk 0:00:32.1]} 42. Kd4 {[%clk 0:00:32.6]}
42... Bxf4 {[%clk 0:00:30.8]} 0-1

[Event "Early-Titled-Tuesday-Blitz-May-07-2024"]
[Site "Chess.com"]
[Date "2024.05.07"]
[Round "7"]
[White "Kushch_Nikolai"]
[Black "ChadBiryani"]
[Result "1-0"]
[WhiteElo "2426"]
[BlackElo "2544"]
[TimeControl "180+1"]
[EndTime "9:21:30 PDT"]
[Termination "Kushch_Nikolai won on time"]

1. Nf3 {[%clk 0:03:00.9]} 1... f5 {[%clk 0:02:51.3]} 2. b3 {[%clk 0:02:57.9]}
2... Nf6 {[%clk 0:02:49.8]} 3. Bb2 {[%clk 0:02:57.8]} 3... d5 {[%clk 0:02:46.8]}
4. g3 {[%clk 0:02:54.7]} 4... c6 {[%clk 0:02:37.4]} 5. Bg2 {[%clk 0:02:54.5]}
5... Be6 {[%clk 0:02:26.9]} 6. O-O {[%clk 0:02:53.7]} 6... Bf7 {[%clk
0:02:26.1]} 7. d3 {[%clk 0:02:52.2]} 7... Nbd7 {[%clk 0:02:25.3]} 8. Nbd2 {[%clk
0:02:51.9]} 8... g6 {[%clk 0:02:25.6]} 9. e4 {[%clk 0:02:50.6]} 9... Bg7 {[%clk
0:02:19.4]} 10. exf5 {[%clk 0:02:44.1]} 10... gxf5 {[%clk 0:02:18.9]} 11. Re1
{[%clk 0:02:44.3]} 11... O-O {[%clk 0:02:17.8]} 12. Ng5 {[%clk 0:02:37.4]} 12...
Re8 {[%clk 0:01:57.8]} 13. f4 {[%clk 0:02:26.4]} 13... Qb6+ {[%clk 0:01:52.8]}
14. d4 {[%clk 0:02:19.5]} 14... Ng4 {[%clk 0:01:50.3]} 15. Ndf3 {[%clk
0:02:17.2]} 15... e5 {[%clk 0:01:49]} 16. Nxf7 {[%clk 0:02:13.1]} 16... Kxf7
{[%clk 0:01:48.6]} 17. fxe5 {[%clk 0:02:11.3]} 17... Ngxe5 {[%clk 0:01:45.7]}
18. Nxe5+ {[%clk 0:02:08.2]} 18... Nxe5 {[%clk 0:01:41.9]} 19. Qh5+ {[%clk
0:02:04.8]} 19... Kg8 {[%clk 0:01:25.2]} 20. Kh1 {[%clk 0:02:04.4]} 20... Ng6
{[%clk 0:01:19]} 21. Qxf5 {[%clk 0:01:57.7]} 21... Bxd4 {[%clk 0:01:14.5]} 22.
Rxe8+ {[%clk 0:01:51.1]} 22... Rxe8 {[%clk 0:01:13.9]} 23. Rf1 {[%clk
0:01:50.9]} 23... Re7 {[%clk 0:00:42.3]} 24. Bxd5+ {[%clk 0:01:46.2]} 24... cxd5
{[%clk 0:00:31.6]} 25. Qxd5+ {[%clk 0:01:45.1]} 25... Qe6 {[%clk 0:00:31.6]} 26.
Qxe6+ {[%clk 0:01:29.1]} 26... Rxe6 {[%clk 0:00:31.7]} 27. Bxd4 {[%clk
0:01:29.5]} 27... Re2 {[%clk 0:00:27]} 28. Rf2 {[%clk 0:01:29.3]} 28... Re1+
{[%clk 0:00:25.1]} 29. Kg2 {[%clk 0:01:28.7]} 29... a6 {[%clk 0:00:25.7]} 30. a4
{[%clk 0:01:28]} 30... Ne7 {[%clk 0:00:16.8]} 31. Bc3 {[%clk 0:01:27.1]} 31...
Re3 {[%clk 0:00:14.5]} 32. Bd2 {[%clk 0:01:25.6]} 32... Re6 {[%clk 0:00:14]} 33.
c4 {[%clk 0:01:22.2]} 33... Nc6 {[%clk 0:00:13.2]} 34. Bc3 {[%clk 0:01:17.9]}
34... Re3 {[%clk 0:00:12.8]} 35. Rf3 {[%clk 0:01:17.5]} 35... Re2+ {[%clk
0:00:13]} 36. Kh3 {[%clk 0:01:17]} 36... Ne7 {[%clk 0:00:12.5]} 37. g4 {[%clk
0:01:16.3]} 37... Ng6 {[%clk 0:00:11.1]} 38. Kg3 {[%clk 0:01:16.1]} 38... Rc2
{[%clk 0:00:10.6]} 39. h4 {[%clk 0:01:14.8]} 39... Ne7 {[%clk 0:00:09.5]} 40. h5
{[%clk 0:01:13.6]} 40... Nc6 {[%clk 0:00:07.9]} 41. g5 {[%clk 0:01:13.7]} 41...
Rc1 {[%clk 0:00:04.5]} 42. Kg2 {[%clk 0:01:06.6]} 42... Rc2+ {[%clk 0:00:04.4]}
43. Kh3 {[%clk 0:01:06.2]} 43... Rc1 {[%clk 0:00:04.6]} 44. g6 {[%clk
0:01:05.5]} 44... hxg6 {[%clk 0:00:02.3]} 45. hxg6 {[%clk 0:01:05.1]} 45... Rh1+
{[%clk 0:00:03.1]} 46. Kg2 {[%clk 0:01:04.8]} 46... Rc1 {[%clk 0:00:03.4]} 47.
g7 {[%clk 0:01:04.3]} 47... Rxc3 {[%clk 0:00:01.4]} 48. Rd3 {[%clk 0:01:03.8]}
48... Kxg7 {[%clk 0:00:02.3]} 49. Rxc3 {[%clk 0:01:04.7]} 1-0